bitfinex-derivatives/quotes_BTCF0:USTF0_20250822
["timestamp","ask_amount","ask_price","bid_price","bid_amount"]
[1755824858821,0.56179764,112560.0,112550.0,0.8989524]
[1755824878928,0.84309528,112560.0,112550.0,0.8989524]
[1755824879624,0.84409528,112560.0,112550.0,0.8989524]
[1755824880330,0.84469984,112560.0,112550.0,0.8989524]
[1755824881227,0.84469984,112560.0,112550.0,0.8988524]
[1755824882433,0.84669984,112560.0,112550.0,0.8988524]
[1755824883934,0.2835,112560.0,112550.0,0.8988524]
[1755824884132,0.84669984,112560.0,112550.0,0.8988524]
[1755824884437,0.81516984,112560.0,112550.0,0.8988524]
[1755824884728,0.48177992,112560.0,112550.0,1.18045232]
[1755824885435,0.17746,112560.0,112550.0,1.18045232]
[1755824885626,0.45905992,112560.0,112550.0,1.18045232]
[1755824885821,0.16836,112560.0,112550.0,1.18045232]
[1755824886021,0.44995992,112560.0,112550.0,1.18045232]
[1755824886225,0.55177992,112560.0,112550.0,1.1644524]
[1755824886426,0.56816232,112560.0,112550.0,1.1644524]
[1755824886930,0.40280232,112560.0,112550.0,1.1644524]
[1755824890128,0.40280232,112560.0,112550.0,1.1414024]
[1755824891132,0.40280232,112560.0,112550.0,0.3260024]
[1755824891336,0.76360232,112560.0,112550.0,1.1281324]
[1755824891540,0.76360232,112560.0,112550.0,1.1414024]
[1755824891838,1.04514464,112560.0,112550.0,1.1414024]
[1755824892237,1.04514464,112560.0,112550.0,0.8758024]
[1755824892433,0.97563464,112560.0,112540.0,0.2656]
[1755824892633,0.76060232,112550.0,112540.0,0.2656]
[1755824893035,0.76140232,112550.0,112540.0,0.2656]
[1755824893340,0.11826,112540.0,112530.0,0.86233431]
[1755824893533,0.76060232,112540.0,112530.0,0.86233431]
[1755824893936,0.76060232,112540.0,112530.0,0.87560431]
[1755824894332,0.76060232,112540.0,112530.0,0.86596]
[1755824894740,0.95550232,112540.0,112530.0,0.86596]
[1755824895535,0.95550232,112540.0,112530.0,0.88901]
[1755824896330,0.95850232,112540.0,112530.0,0.88901]
[1755824898135,0.95850232,112540.0,112530.0,0.89841183]
[1755824899640,0.95850232,112540.0,112530.0,0.03725]
[1755824899942,0.95850232,112540.0,112530.0,0.05052]
[1755824900139,1.24004464,112540.0,112530.0,0.03725]
[1755824900335,0.11923,112530.0,112520.0,0.89603047]
[1755824900540,0.76157232,112530.0,112520.0,0.90532453]
[1755824900942,1.04311464,112530.0,112520.0,0.91859453]
[1755824901244,1.23801464,112530.0,112520.0,0.91859453]
[1755824901542,0.95647232,112530.0,112520.0,0.89901406]
[1755824901740,1.23801464,112530.0,112510.0,0.43351918]
[1755824901935,0.40077232,112520.0,112510.0,0.87177]
[1755824902937,0.40177232,112520.0,112510.0,0.85882]
[1755824903137,0.40177232,112520.0,112510.0,0.87209]
[1755824903444,0.36715232,112520.0,112510.0,0.87209]
[1755824903645,0.40177232,112520.0,112510.0,0.89504]
[1755824903946,0.59667232,112520.0,112510.0,0.89504]
[1755824904839,0.69827232,112520.0,112510.0,0.89504]
[1755824907651,0.69827232,112520.0,112510.0,0.03774]
[1755824907854,1.05907232,112520.0,112510.0,0.05101]
[1755824908050,0.07193,112510.0,112500.0,0.27522847]
[1755824908248,0.76157232,112510.0,112500.0,1.17070847]
[1755824909546,0.76457232,112510.0,112500.0,0.85926]
[1755824909847,0.07193,112500.0,112490.0,1.12362]
[1755824910055,0.68231464,112500.0,112490.0,0.30182]
[1755824910349,0.68231464,112500.0,112490.0,1.13825]
[1755824910539,0.68231464,112500.0,112490.0,1.1612]
[1755824910944,0.57669232,112500.0,112490.0,1.1612]
[1755824911144,0.57669232,112500.0,112490.0,1.17059243]
[1755824911745,0.57969232,112500.0,112490.0,1.17059243]
[1755824911943,1.22203464,112500.0,112490.0,1.14764243]
[1755824913053,1.22203464,112500.0,112490.0,0.87265]
[1755824914051,1.22203464,112500.0,112480.0,0.87477729]
[1755824914251,0.40077232,112490.0,112480.0,0.88664729]
[1755824914648,0.76157232,112490.0,112480.0,0.88664729]
[1755824915654,0.95647232,112490.0,112480.0,0.84275]
[1755824915849,0.95747232,112490.0,112480.0,0.84275]
[1755824916048,0.95747232,112490.0,112480.0,0.02131]
[1755824916253,0.95747232,112490.0,112480.0,8e-05]
[1755824916751,1.77943232,112490.0,112480.0,8e-05]
[1755824916950,1.95199232,112490.0,112480.0,8e-05]
[1755824917846,1.95399232,112490.0,112480.0,8e-05]
[1755824918447,1.95499232,112490.0,112480.0,8e-05]
[1755824919252,1.95511232,112490.0,112480.0,0.02131]
[1755824919859,1.95527232,112490.0,112480.0,0.02131]
[1755824920148,1.13303232,112490.0,112480.0,0.02131]
[1755824921051,1.13303232,112490.0,112480.0,0.0349]
[1755824921253,1.95523232,112490.0,112480.0,0.04817]
[1755824921553,1.13303232,112490.0,112480.0,0.04817]
[1755824922256,1.09841232,112490.0,112480.0,0.05666]
[1755824922550,1.13303232,112490.0,112480.0,0.05666]
[1755824922752,0.73761232,112490.0,112480.0,0.05666]
[1755824922949,0.56505232,112490.0,112480.0,0.05666]
[1755824923454,0.31813,112490.0,112480.0,0.05666]
[1755824923655,0.59967232,112490.0,112480.0,0.05666]
[1755824923849,0.59967232,112490.0,112480.0,0.04817]
[1755824927556,0.59967232,112490.0,112480.0,0.02131]
[1755824927951,0.59967232,112490.0,112480.0,0.03458]
[1755824928562,0.96047232,112490.0,112480.0,8e-05]
[1755824928747,1.78519232,112490.0,112480.0,8e-05]
[1755824928953,1.78519232,112490.0,112460.0,2.06832759]
[1755824928954,0.08526,112470.0,112460.0,2.08167759]
[1755824929156,0.68056464,112470.0,112460.0,3.17191759]
[1755824929357,0.68056464,112470.0,112460.0,1.48175759]
[1755824929556,0.39902232,112470.0,112460.0,1.48175759]
[1755824930054,0.39902232,112470.0,112460.0,0.67847759]
[1755824930250,0.39902232,112470.0,112460.0,1.50319759]
[1755824930562,0.40002232,112470.0,112460.0,1.50319759]
[1755824930857,0.59492232,112470.0,112460.0,1.50319759]
[1755824931357,0.31338,112470.0,112460.0,1.78473991]
[1755824931655,0.31338,112470.0,112460.0,1.51168759]
[1755824931856,0.59492232,112470.0,112460.0,1.51168759]
[1755824932458,0.87646464,112470.0,112450.0,0.64622067]
[1755824932663,0.39902232,112460.0,112450.0,1.52432067]
[1755824932863,0.11748,112460.0,112450.0,1.52432067]
[1755824933063,0.11748,112460.0,112450.0,1.18064086]
[1755824933265,0.39902232,112460.0,112450.0,1.18064086]
[1755824934360,0.40102232,112460.0,112450.0,1.18064086]
[1755824936367,0.40102232,112460.0,112450.0,0.91504086]
[1755824936867,0.40102232,112460.0,112450.0,0.91580086]
[1755824937069,0.40102232,112460.0,112450.0,0.08524086]
[1755824937275,0.40102232,112460.0,112450.0,0.91564086]
[1755824937676,0.40102232,112460.0,112450.0,0.89582019]
[1755824939878,0.40202232,112460.0,112450.0,0.89582019]
[1755824940275,0.12048,112460.0,112450.0,0.89582019]
[1755824940577,0.40202232,112460.0,112450.0,0.89582019]
[1755824940880,0.40202232,112460.0,112450.0,0.90431019]
[1755824944780,0.30850232,112460.0,112450.0,0.90431019]
[1755824945381,0.05901,112460.0,112450.0,0.90431019]
[1755824945577,0.30850232,112460.0,112450.0,0.99325679]
[1755824945770,0.003,112460.0,112450.0,1.63559911]
[1755824945978,0.003,112460.0,112450.0,1.63639911]
[1755824946275,0.47326,112470.0,112460.0,0.1379287]
[1755824946575,0.49578,112470.0,112460.0,0.40979]
[1755824946782,0.78685232,112470.0,112460.0,0.40979]
[1755824946969,0.71411232,112470.0,112460.0,0.40979]
[1755824947478,0.71811232,112470.0,112460.0,0.40979]
[1755824947982,0.65384232,112470.0,112460.0,0.40979]
[1755824948183,0.65384232,112470.0,112460.0,0.4987287]
[1755824948484,0.46582,112470.0,112460.0,0.40979]
[1755824948877,0.74736232,112470.0,112460.0,0.40979]
[1755824951386,0.74736232,112470.0,112460.0,0.6669]
[1755824951987,0.74736232,112470.0,112460.0,1.50078]
[1755824957090,0.74736232,112470.0,112460.0,1.56475458]
[1755824957686,1.10816232,112470.0,112460.0,1.20263458]
[1755824958091,1.38970464,112470.0,112460.0,1.20263458]
[1755824958298,1.10816232,112470.0,112460.0,1.20263458]
[1755824958491,0.74736232,112470.0,112460.0,1.20263458]
[1755824958886,0.74736232,112470.0,112460.0,0.35972458]
[1755824959092,1.38970464,112470.0,112460.0,1.19164458]
[1755824961600,1.38970464,112470.0,112460.0,1.16089458]
[1755824961895,1.54454464,112470.0,112460.0,1.16089458]
[1755824963212,1.54454464,112470.0,112460.0,0.89529458]
[1755824963996,1.54454464,112470.0,112460.0,0.92220458]
[1755824965004,1.54454464,112470.0,112460.0,0.85823]
[1755824965502,1.54454464,112470.0,112460.0,0.02691]
[1755824965898,0.12141,112460.0,112450.0,0.91161458]
[1755824966201,0.76375232,112460.0,112450.0,0.91161458]
[1755824966395,0.76375232,112460.0,112450.0,0.92196458]
[1755824966799,0.76375232,112460.0,112450.0,0.93555458]
[1755824967501,0.76375232,112460.0,112450.0,0.09412458]
[1755824967696,0.76375232,112460.0,112450.0,0.89425458]
[1755824967902,0.76475232,112460.0,112450.0,0.89525458]
[1755824968501,0.95965232,112460.0,112450.0,0.91181458]
[1755824968705,0.95965232,112460.0,112450.0,0.85819]
[1755824969107,0.95965232,112460.0,112450.0,0.92216458]
[1755824969602,0.95965232,112460.0,112450.0,0.93575458]
[1755824970601,0.95965232,112460.0,112450.0,0.10547458]
[1755824970798,0.95965232,112460.0,112450.0,0.001]
[1755824970998,1.14117232,112460.0,112450.0,0.001]
[1755824973513,0.12141,112450.0,112440.0,0.85691]
[1755824973712,0.76375232,112450.0,112440.0,0.02691]
[1755824974206,0.76375232,112450.0,112430.0,1.18710994]
[1755824974402,0.12041,112440.0,112430.0,0.95165994]
[1755824975005,0.40095232,112440.0,112430.0,0.95165994]
[1755824975203,0.40095232,112440.0,112430.0,0.11142994]
[1755824975398,0.40095232,112440.0,112430.0,0.95161994]
[1755824975596,0.68249464,112440.0,112430.0,0.95161994]
[1755824975999,0.68249464,112440.0,112430.0,0.94126994]
[1755824976196,0.61009464,112440.0,112420.0,2.39156458]
[1755824976408,0.37820232,112430.0,112420.0,3.22116458]
[1755824977009,0.40295232,112430.0,112420.0,2.86036458]
[1755824977305,0.40295232,112430.0,112420.0,2.874274]
[1755824977703,0.12141,112430.0,112420.0,2.884764]
[1755824977899,0.40295232,112430.0,112420.0,2.884764]
[1755824978101,0.40495232,112430.0,112420.0,2.884764]
[1755824978401,0.36997232,112430.0,112420.0,2.87085458]
[1755824978608,0.30829232,112430.0,112420.0,3.23165458]
[1755824978802,0.32945232,112430.0,112420.0,3.23165458]
[1755824979004,0.33919232,112430.0,112420.0,3.23165458]
[1755824979200,0.40495232,112430.0,112420.0,2.05692318]
[1755824979509,0.40495232,112430.0,112420.0,1.22024318]
[1755824980005,0.40495232,112430.0,112420.0,1.23073318]
[1755824980206,0.40495232,112430.0,112420.0,1.1667586]
[1755824980804,0.12341,112430.0,112420.0,1.1667586]
[1755824981001,0.40495232,112430.0,112420.0,0.9011586]
[1755824981197,0.40495232,112430.0,112420.0,1.2619586]
[1755824982410,0.40495232,112430.0,112420.0,0.9011586]
[1755824986105,0.40395232,112430.0,112420.0,0.9011586]
[1755824986310,0.40395232,112430.0,112420.0,0.9015986]
[1755824986511,0.40395232,112430.0,112420.0,0.8911086]
[1755824986909,0.40395232,112430.0,112420.0,0.8855986]
[1755824989216,0.12241,112430.0,112420.0,0.8855986]
[1755824989411,0.40395232,112430.0,112420.0,0.8855986]
[1755824990609,0.12241,112430.0,112420.0,0.8855986]
[1755824990818,0.40395232,112430.0,112420.0,0.8855986]
[1755824991619,0.30729232,112430.0,112420.0,1.2463986]
[1755824992118,0.40058232,112430.0,112420.0,1.2463986]
[1755824992518,0.11904,112430.0,112420.0,1.2463986]
[1755824992719,0.40058232,112430.0,112420.0,1.2463986]
[1755824995426,0.11904,112430.0,112420.0,1.2463986]
[1755824995626,0.40058232,112430.0,112420.0,1.2463986]
[1755824996132,0.11904,112430.0,112420.0,1.2463986]
[1755824996324,0.40058232,112430.0,112420.0,1.2463986]
[1755824997031,0.11904,112430.0,112420.0,1.2463986]
[1755824997232,0.40058232,112430.0,112420.0,1.2463986]
[1755824999331,0.11904,112430.0,112420.0,1.2463986]
[1755824999532,0.40058232,112430.0,112420.0,1.2463986]
[1755825001328,0.36825232,112430.0,112420.0,1.2463986]
[1755825001529,0.35428232,112430.0,112420.0,1.2463986]
[1755825002133,0.40058232,112430.0,112420.0,1.2463986]
[1755825002826,0.11904,112430.0,112420.0,1.2463986]
[1755825003028,0.40058232,112430.0,112420.0,1.2463986]
[1755825003934,0.40058232,112430.0,112420.0,1.2523186]
[1755825004636,0.59548232,112430.0,112420.0,1.2523186]
[1755825005826,0.59548232,112430.0,112420.0,0.4142386]
[1755825006030,0.95628232,112430.0,112410.0,0.2656]
[1755825006237,0.39944232,112420.0,112410.0,1.11892]
[1755825006638,0.39944232,112420.0,112410.0,1.13041]
[1755825006826,0.39944232,112420.0,112410.0,1.14596721]
[1755825007030,0.59434232,112420.0,112410.0,0.30836721]
[1755825007233,0.59434232,112420.0,112410.0,1.14580721]
[1755825007432,0.39944232,112420.0,112410.0,1.14580721]
[1755825007633,0.59634232,112420.0,112410.0,1.14580721]
[1755825011034,1.23868464,112420.0,112410.0,0.03127721]
[1755825011234,0.95714232,112420.0,112410.0,0.852]
[1755825011933,0.95714232,112420.0,112410.0,0.86769478]
[1755825012534,0.59634232,112420.0,112410.0,0.86769478]
[1755825012841,1.20938232,112420.0,112410.0,0.86769478]
[1755825013842,1.20438232,112420.0,112410.0,0.86769478]
[1755825014143,1.17705232,112420.0,112410.0,0.87918478]
[1755825014342,1.20938232,112420.0,112410.0,0.87918478]
[1755825015745,1.20938232,112420.0,112410.0,0.852]
[1755825016553,0.96014232,112420.0,112410.0,0.852]
[1755825018549,0.59934232,112420.0,112410.0,0.852]
[1755825018743,0.59934232,112420.0,112410.0,0.86349]
[1755825019650,0.3178,112420.0,112410.0,0.86349]
[1755825019852,0.59934232,112420.0,112410.0,0.86349]
[1755825021646,0.25599,112420.0,112410.0,0.86349]
[1755825021852,0.1999,112420.0,112410.0,1.65958348]
[1755825022150,0.1999,112420.0,112410.0,1.59561042]
[1755825024053,0.1999,112420.0,112410.0,1.59481042]
[1755825024252,0.1999,112420.0,112410.0,1.59561042]
[1755825025240,0.18841,112420.0,112410.0,2.14275274]
[1755825025444,0.18841,112420.0,112410.0,2.22238638]
[1755825026344,0.18841,112420.0,112410.0,2.14275274]
[1755825027048,0.02387301,112440.0,112420.0,0.3558587]
[1755825027255,0.00013301,112440.0,112430.0,1.56526452]
[1755825027449,0.00013301,112440.0,112430.0,1.92606452]
[1755825027950,0.01163301,112440.0,112430.0,1.92606452]
[1755825028348,0.01163301,112440.0,112430.0,2.19166452]
[1755825028548,0.01963301,112440.0,112430.0,2.27157291]
[1755825028748,0.01963301,112440.0,112430.0,2.19166452]
[1755825028948,0.01963301,112440.0,112430.0,2.00597291]
[1755825029451,0.01963301,112440.0,112430.0,2.27157291]
[1755825031455,0.01963301,112440.0,112430.0,1.99095059]
[1755825031757,0.04337301,112440.0,112430.0,2.27249291]
[1755825032455,0.04337301,112440.0,112430.0,1.43761291]
[1755825032659,0.07564301,112440.0,112430.0,1.43761301]
[1755825032852,0.13956301,112440.0,112430.0,1.9110823]
[1755825033051,0.13956301,112440.0,112430.0,2.19262462]
[1755825033763,0.13956301,112440.0,112430.0,1.82216]
[1755825034157,0.13956301,112440.0,112430.0,1.55656]
[1755825035064,0.13956301,112440.0,112430.0,1.6455223]
[1755825035556,0.01963301,112440.0,112430.0,1.92706462]
[1755825036356,0.01963301,112440.0,112430.0,2.00697301]
[1755825036553,0.01963301,112440.0,112430.0,1.72543069]
[1755825036757,0.01963301,112440.0,112430.0,1.6455223]
[1755825036959,0.09189301,112440.0,112430.0,0.7216]
[1755825037158,0.13956301,112440.0,112430.0,1.83774232]
[1755825037362,0.13956301,112440.0,112430.0,1.90148498]
[1755825037966,0.13956301,112440.0,112430.0,0.78534266]
[1755825038364,0.13956301,112440.0,112430.0,1.61990266]
[1755825040262,0.42110533,112440.0,112430.0,1.05094266]
[1755825040771,0.42110533,112440.0,112430.0,1.88498266]
[1755825040967,0.42110533,112440.0,112430.0,1.16338266]
[1755825041172,0.42110533,112440.0,112420.0,0.42454266]
[1755825041173,0.11993,112430.0,112420.0,0.42454266]
[1755825041371,0.40147232,112430.0,112420.0,1.19468]
[1755825041975,0.59637232,112430.0,112420.0,1.19468]
[1755825042465,0.40147232,112430.0,112420.0,1.19468]
[1755825042670,0.59637232,112430.0,112420.0,1.19468]
[1755825042869,0.60037232,112430.0,112420.0,1.19568]
[1755825043469,0.60037232,112430.0,112420.0,1.19564]
[1755825043670,0.60037232,112430.0,112420.0,0.3618]
[1755825043871,0.60037232,112430.0,112420.0,1.19548]
[1755825045365,0.96117232,112430.0,112420.0,0.001]
[1755825045563,0.96117232,112430.0,112420.0,0.83468]
[1755825046373,0.96117232,112430.0,112420.0,0.001]
[1755825046573,0.96117232,112430.0,112420.0,0.83436]
[1755825047675,0.96197232,112430.0,112420.0,0.001]
[1755825048770,1.20409232,112430.0,112420.0,0.001]
[1755825050975,1.20409232,112430.0,112400.0,1.17722801]
[1755825050976,0.11908,112410.0,112400.0,1.17722801]
[1755825051167,0.68216464,112410.0,112400.0,1.11348535]
[1755825051367,0.40062232,112410.0,112400.0,1.11448535]
[1755825051567,0.76142232,112410.0,112400.0,1.11448535]
[1755825052068,0.76142232,112410.0,112400.0,0.85048535]
[1755825052069,0.95632232,112410.0,112400.0,0.85048535]
[1755825052874,0.59552232,112410.0,112400.0,0.85048535]
[1755825053675,0.95632232,112410.0,112400.0,0.83496]
[1755825054078,0.95832232,112410.0,112400.0,0.83596]
[1755825054574,0.95832232,112410.0,112400.0,0.83496]
[1755825054575,0.59552232,112410.0,112400.0,0.83496]
[1755825054775,0.59952232,112410.0,112400.0,0.83496]
[1755825055376,0.96032232,112410.0,112400.0,0.83496]
[1755825055775,0.59952232,112410.0,112400.0,0.83496]
[1755825056373,0.31798,112410.0,112400.0,0.83496]
[1755825056573,0.59952232,112410.0,112400.0,0.83496]
[1755825058264,0.59952232,112410.0,112400.0,0.84882999]
[1755825059172,0.31798,112410.0,112400.0,0.84882999]
[1755825059374,0.59952232,112410.0,112400.0,0.84882999]
[1755825061476,0.59952232,112410.0,112400.0,0.83496]
[1755825061777,0.59952232,112410.0,112400.0,0.84891179]
[1755825062178,0.59952232,112410.0,112400.0,0.83496]
[1755825064577,0.31798,112410.0,112400.0,0.83496]
[1755825064776,0.59952232,112410.0,112400.0,0.83496]
[1755825066673,0.31798,112410.0,112400.0,0.83496]
[1755825066880,0.59952232,112410.0,112400.0,0.83496]
[1755825068077,0.31798,112410.0,112400.0,0.83496]
[1755825068270,0.59952232,112410.0,112400.0,0.83496]
[1755825068471,0.59952232,112410.0,112400.0,0.83988]
[1755825070279,0.31798,112410.0,112400.0,0.83988]
[1755825070476,0.59952232,112410.0,112400.0,0.83988]
[1755825070680,0.31798,112410.0,112400.0,0.83988]
[1755825070881,0.59952232,112410.0,112400.0,0.83988]
[1755825072575,0.59952232,112410.0,112400.0,0.90362266]
[1755825072882,0.59952232,112410.0,112400.0,0.83988]
[1755825073185,0.59952232,112410.0,112400.0,0.90362266]
[1755825073576,0.31798,112410.0,112400.0,0.90362266]
[1755825074279,0.28466,112410.0,112400.0,1.26442266]
[1755825074480,0.22244,112410.0,112400.0,1.63495098]
[1755825074875,0.1989,112410.0,112400.0,1.63495098]
[1755825075077,0.1989,112410.0,112400.0,1.57120832]
[1755825077280,0.1979,112410.0,112400.0,1.57200832]
[1755825077478,0.1979,112410.0,112400.0,1.65191671]
[1755825077884,0.1979,112410.0,112400.0,1.37037439]
[1755825078086,0.1979,112410.0,112400.0,1.65191671]
[1755825079082,0.1979,112410.0,112400.0,1.57200832]
[1755825079282,0.1979,112410.0,112400.0,2.11915064]
[1755825079687,0.1979,112410.0,112400.0,1.57200832]
[1755825080087,0.1979,112410.0,112400.0,1.83760832]
[1755825080882,0.1979,112410.0,112400.0,2.31915064]
[1755825080883,0.10933351,112410.0,112400.0,2.31915064]
[1755825081085,0.10933351,112410.0,112400.0,2.43100944]
[1755825081683,0.14249301,112420.0,112400.0,2.34237614]
[1755825081882,0.14249301,112420.0,112410.0,1.09275517]
[1755825081883,0.12965411,112420.0,112410.0,1.09275517]
[1755825082082,0.12965411,112420.0,112410.0,1.01286274]
[1755825083490,0.13065411,112420.0,112410.0,1.51286274]
[1755825083885,0.13065411,112420.0,112410.0,1.59264854]
[1755825084082,0.13165411,112420.0,112410.0,1.59364854]
[1755825084783,0.12532744,112420.0,112410.0,1.59364854]
[1755825084986,0.12532744,112420.0,112410.0,1.79364854]
[1755825086885,0.12532744,112420.0,112410.0,2.63368854]
[1755825087792,0.12532744,112420.0,112410.0,1.79364854]
[1755825087994,0.12532744,112420.0,112410.0,2.63392854]
[1755825088395,0.12532744,112420.0,112410.0,1.79364854]
[1755825088592,0.14968744,112420.0,112410.0,2.63376854]
[1755825089494,0.14968744,112420.0,112410.0,2.55398274]
[1755825089691,0.14968744,112420.0,112410.0,2.35398274]
[1755825089888,0.14968744,112420.0,112410.0,2.35382274]
[1755825090392,0.18071744,112420.0,112410.0,1.01386274]
[1755825090693,0.24507744,112420.0,112410.0,1.63571196]
[1755825091096,0.24507744,112420.0,112410.0,1.35416964]
[1755825091398,0.24507744,112420.0,112410.0,1.63571196]
[1755825091997,0.43997744,112420.0,112410.0,1.63571196]
[1755825092491,0.43997744,112420.0,112410.0,1.57200042]
[1755825092996,0.43997744,112420.0,112410.0,0.73232042]
[1755825093199,0.43997744,112420.0,112410.0,1.63515767]
[1755825093390,0.43997744,112420.0,112410.0,1.90075767]
[1755825094095,0.43997744,112420.0,112410.0,1.83704042]
[1755825094995,0.43997744,112420.0,112410.0,0.90894232]
[1755825095295,0.43997744,112420.0,112410.0,1.74766232]
[1755825095697,0.43997744,112420.0,112410.0,1.90037771]
[1755825095896,0.43997744,112420.0,112410.0,1.52985689]
[1755825096095,0.43997744,112420.0,112410.0,1.81139921]
[1755825096597,0.43997744,112420.0,112410.0,1.90037771]
[1755825096897,0.43997744,112420.0,112410.0,1.81139921]
[1755825097795,0.43997744,112420.0,112410.0,1.74766232]
[1755825098091,0.43997744,112420.0,112410.0,1.83664082]
[1755825098898,0.43997744,112420.0,112410.0,1.74766232]
[1755825099695,0.43997744,112420.0,112410.0,1.83664082]
[1755825102200,0.43997744,112420.0,112410.0,1.91642662]
[1755825102399,0.43997744,112420.0,112410.0,1.07770662]
[1755825102601,0.43917744,112420.0,112410.0,1.5442658]
[1755825102808,0.72071976,112420.0,112410.0,1.5283187]
[1755825103903,0.43917744,112420.0,112410.0,1.5283187]
[1755825104102,0.43917744,112420.0,112410.0,1.80986102]
[1755825104302,0.43917744,112420.0,112410.0,1.74602232]
[1755825104503,0.43917744,112420.0,112410.0,1.46448]
[1755825111109,0.43917744,112420.0,112410.0,1.5518585]
[1755825111407,0.43917744,112420.0,112410.0,1.46288]
[1755825111809,0.72071976,112420.0,112410.0,1.46252]
[1755825113914,0.43917744,112420.0,112410.0,1.46252]
[1755825114612,0.72071976,112420.0,112410.0,1.46252]
[1755825115511,0.43917744,112420.0,112410.0,1.46252]
[1755825116113,0.72071976,112420.0,112410.0,1.46252]
[1755825116606,0.72071976,112420.0,112410.0,1.52646354]
[1755825117303,0.72071976,112420.0,112410.0,1.46252]
[1755825117701,0.72071976,112420.0,112410.0,1.10172]
[1755825118013,0.72071976,112420.0,112410.0,1.16567751]
[1755825118597,0.72071976,112420.0,112410.0,0.33055751]
[1755825118804,0.72071976,112420.0,112410.0,0.89879751]
[1755825119204,0.72071976,112420.0,112410.0,0.89875751]
[1755825119705,0.71971976,112420.0,112410.0,0.06495751]
[1755825119911,1.08131976,112420.0,112410.0,0.001]
[1755825120107,0.07156,112410.0,112400.0,0.06395751]
[1755825120307,0.68158464,112410.0,112400.0,0.06395751]
[1755825120517,1.04238464,112410.0,112400.0,0.06395751]
[1755825120808,0.04806,112400.0,112390.0,0.91163985]
[1755825121009,0.37754232,112400.0,112390.0,0.91163985]
[1755825121419,0.37754232,112400.0,112390.0,0.89739751]
[1755825122118,0.37654232,112400.0,112390.0,0.91060224]
[1755825122306,0.57144232,112400.0,112390.0,0.91060224]
[1755825122503,0.59494232,112400.0,112390.0,0.91060224]
[1755825122809,0.59694232,112400.0,112390.0,0.07804224]
[1755825123011,0.59694232,112400.0,112390.0,0.06495751]
[1755825123817,0.59694232,112400.0,112390.0,0.89799751]
[1755825124016,0.59694232,112400.0,112390.0,0.06495751]
[1755825124216,0.59694232,112400.0,112390.0,0.89819751]
[1755825124418,0.59694232,112400.0,112390.0,0.83424]
[1755825124714,0.59694232,112400.0,112390.0,0.001]
[1755825124912,0.59694232,112400.0,112390.0,0.8342]
[1755825125314,0.59694232,112400.0,112390.0,0.001]
[1755825126512,0.3154,112400.0,112390.0,0.001]
[1755825126821,0.78034232,112400.0,112390.0,0.001]
[1755825130315,1.14114232,112400.0,112390.0,0.001]
[1755825138427,1.13414232,112400.0,112390.0,0.001]
[1755825139018,0.8526,112400.0,112390.0,0.001]
[1755825139219,1.13414232,112400.0,112390.0,0.001]
[1755825139423,0.77334232,112400.0,112390.0,0.001]
[1755825139628,1.13414232,112400.0,112390.0,0.001]
[1755825141834,0.8526,112400.0,112390.0,0.001]
[1755825142036,1.13414232,112400.0,112390.0,0.001]
[1755825143129,0.77334232,112400.0,112390.0,0.001]
[1755825143728,1.13414232,112400.0,112390.0,0.001]
[1755825143924,0.4918,112400.0,112390.0,1.49396232]
[1755825144134,0.43632,112400.0,112390.0,1.64871403]
[1755825144430,0.3803,112400.0,112390.0,1.58475652]
[1755825144935,0.1969,112400.0,112390.0,1.58475652]
[1755825145525,0.18991,112400.0,112390.0,1.86454232]
[1755825145738,0.18648185,112400.0,112390.0,2.14608464]
[1755825145932,0.24928,112410.0,112390.0,2.24428234]
[1755825146234,0.24928,112410.0,112400.0,1.09355913]
[1755825146425,0.24928,112410.0,112400.0,1.29355913]
[1755825147527,0.24928,112410.0,112400.0,0.72967449]
[1755825147727,0.31285744,112420.0,112400.0,2.11836901]
[1755825147927,0.31285744,112420.0,112410.0,0.64234232]
[1755825148128,0.31285744,112420.0,112410.0,0.73132072]
[1755825148931,0.31285744,112420.0,112410.0,1.01286304]
[1755825148932,0.29139744,112420.0,112410.0,1.01286304]
[1755825149129,0.30413744,112420.0,112410.0,0.73232072]
[1755825149430,0.31385744,112420.0,112410.0,0.73232072]
[1755825151442,0.34663744,112420.0,112410.0,0.79611285]
[1755825151642,0.37547744,112420.0,112410.0,0.42559213]
[1755825151836,0.37547744,112420.0,112410.0,1.54625445]
[1755825152342,0.37547744,112420.0,112410.0,0.70713445]
[1755825152543,0.37547744,112420.0,112410.0,1.54649445]
[1755825152934,0.37547744,112420.0,112410.0,1.26495213]
[1755825153136,0.65701976,112420.0,112410.0,1.20116]
[1755825153332,0.65701976,112420.0,112410.0,0.42559213]
[1755825153640,0.65701976,112420.0,112410.0,1.26483213]
[1755825154136,0.65781976,112420.0,112410.0,1.20096]
[1755825154336,0.65781976,112420.0,112410.0,0.3618]
[1755825155836,0.37627744,112420.0,112410.0,0.3618]
[1755825156035,0.65781976,112420.0,112410.0,0.3618]
[1755825157045,0.87857976,112420.0,112410.0,0.001]
[1755825157238,1.23937976,112420.0,112410.0,0.001]
[1755825157743,0.95783744,112420.0,112410.0,0.001]
[1755825158045,1.23937976,112420.0,112410.0,0.001]
[1755825158636,1.23857976,112420.0,112410.0,0.001]
[1755825158843,0.87777976,112420.0,112410.0,0.001]
[1755825159842,1.23857976,112420.0,112410.0,0.001]
[1755825160044,0.95703744,112420.0,112410.0,0.001]
[1755825160232,1.23857976,112420.0,112410.0,0.001]
[1755825161947,0.95703744,112420.0,112410.0,0.001]
[1755825162142,0.87777976,112420.0,112410.0,0.001]
[1755825162341,1.23857976,112420.0,112410.0,0.001]
[1755825162542,1.24257976,112420.0,112410.0,0.001]
[1755825162841,0.96103744,112420.0,112410.0,0.001]
[1755825163044,1.24257976,112420.0,112410.0,0.001]
[1755825163646,0.88177976,112420.0,112410.0,0.001]
[1755825163846,1.24257976,112420.0,112410.0,0.001]
[1755825166044,0.11763,112410.0,112400.0,0.3608]
[1755825166348,0.11763,112400.0,112390.0,1.52763213]
[1755825166543,0.11763,112400.0,112390.0,1.52863213]
[1755825166850,0.11763,112400.0,112390.0,1.81017445]
[1755825167746,0.11763,112400.0,112390.0,1.81213445]
[1755825168142,0.11463,112400.0,112390.0,1.81213445]
[1755825168645,0.11663,112400.0,112390.0,1.81313445]
[1755825169050,0.11663,112400.0,112390.0,0.97533445]
[1755825169350,0.08685,112400.0,112390.0,1.90188865]
[1755825169545,0.02683,112400.0,112390.0,1.90188865]
[1755825169744,0.05919,112400.0,112390.0,1.90188865]
[1755825169950,0.07502,112400.0,112390.0,1.90188865]
[1755825170152,0.12283,112400.0,112390.0,1.63628865]
[1755825170449,0.12283,112400.0,112390.0,1.57249652]